lending/lending_fUSD_20240522
["ID","MTS","AMOUNT","RATE_DAILY","PERIOD"]
[327721070,1716381040936,-500.0,0.00018808,2]
[327721071,1716381040946,-500.0,0.00018808,2]
[327721072,1716381040955,-500.0,0.00018808,2]
[327721073,1716381040964,-500.0,0.00018808,2]
[327721074,1716381040973,-500.0,0.00018808,2]
[327721075,1716381040982,-500.0,0.00018808,2]
[327721076,1716381040992,-500.0,0.00018808,2]
[327721077,1716381041000,-500.0,0.00018808,2]
[327721078,1716381041011,-680.0,0.00018862,2]
[327721079,1716381041020,-800.0,0.000189,6]
[327721080,1716381041030,-1001.487425,0.00018904,2]
[327721081,1716381041040,-410.39631753,0.00019,2]
[327721082,1716381041050,-3089.79346649,0.00019111,2]
[327721083,1716381041059,-500.0,0.00019178,2]
[327721084,1716381041068,-390.20958711,0.00019178,2]
[327721085,1716381041077,-500.0,0.00019178,2]
[327721086,1716381041086,-500.0,0.00019178,2]
[327721087,1716381041095,-500.0,0.00019178,2]
[327721088,1716381041105,-472.31380833,0.00019178,2]
[327721089,1716381041114,-500.0,0.00019178,2]
[327721090,1716381041125,-500.0,0.00019178,2]
[327721091,1716381041136,-500.0,0.00019178,2]
[327721092,1716381041145,-500.0,0.00019178,2]
[327721093,1716381041154,-500.0,0.00019178,2]
[327721094,1716381041163,-500.0,0.00019178,2]
[327721095,1716381041173,-500.0,0.00019178,2]
[327721096,1716381041183,-500.0,0.00019178,2]
[327721097,1716381041192,-500.0,0.00019178,2]
[327721098,1716381041202,-500.0,0.00019178,2]
[327721099,1716381041214,-500.0,0.00019178,2]
[327721100,1716381041223,-500.0,0.00019178,2]
[327721101,1716381041235,-500.0,0.00019178,2]
[327721102,1716381041244,-500.0,0.00019178,2]
[327721103,1716381041254,-500.0,0.00019178,2]
[327721104,1716381041263,-500.0,0.00019178,2]
[327721105,1716381041272,-500.0,0.00019178,2]
[327721106,1716381041281,-500.0,0.00019178,2]
[327721107,1716381041291,-500.0,0.00019178,2]
[327721108,1716381041312,-500.0,0.00019178,2]
[327721109,1716381041324,-500.0,0.00019178,2]
[327721110,1716381041335,-193.15828507,0.00019178,2]
[327721111,1716381041344,-500.0,0.00019178,2]
[327721112,1716381041354,-500.0,0.00019178,2]
[327721113,1716381041366,-500.0,0.00019178,2]
[327721114,1716381041376,-500.0,0.00019178,2]
[327721115,1716381041386,-500.0,0.00019178,2]
[327721116,1716381041396,-500.0,0.00019178,2]
[327721117,1716381041406,-160.69765555,0.00019178,2]
[327721118,1716381041416,-500.0,0.00019178,2]
[327721119,1716381041426,-500.0,0.00019178,2]
[327721120,1716381041435,-500.0,0.00019178,2]
[327721121,1716381041445,-500.0,0.00019178,2]
[327721122,1716381041455,-500.0,0.00019178,2]
[327721123,1716381041466,-500.0,0.00019178,2]
[327721124,1716381041476,-500.0,0.00019178,2]
[327721125,1716381041486,-250.82427494,0.00019178,2]
[327721126,1716381041495,-500.0,0.00019178,2]
[327721127,1716381041505,-500.0,0.00019178,2]
[327721128,1716381041515,-500.0,0.00019178,2]
[327721129,1716381041524,-500.0,0.00019178,2]
[327721130,1716381041534,-500.0,0.00019178,2]
[327721131,1716381041544,-500.0,0.00019178,2]
[327721132,1716381041556,-500.0,0.00019178,2]
[327721133,1716381041718,-500.0,0.00019178,2]
[327721134,1716381041727,-500.0,0.00019178,2]
[327721135,1716381041735,-500.0,0.00019178,2]
[327721136,1716381041744,-500.0,0.00019178,2]
[327721137,1716381041753,-500.0,0.00019178,2]
[327721138,1716381041763,-500.0,0.00019178,2]
[327721139,1716381041772,-500.0,0.00019178,2]
[327721140,1716381041781,-500.0,0.00019178,2]
[327721141,1716381041791,-513.41229129,0.00019178,2]
[327721142,1716381041801,-500.0,0.00019178,2]
[327721143,1716381041811,-500.0,0.00019178,2]
[327721144,1716381041820,-500.0,0.00019178,2]
[327721145,1716381041829,-600.0,0.00019178,2]
[327721146,1716381041839,-500.0,0.00019178,2]
[327721147,1716381041848,-500.0,0.00019178,2]
[327721148,1716381041857,-500.0,0.00019178,2]
[327721149,1716381041866,-500.0,0.00019178,2]
[327721150,1716381041875,-500.0,0.00019178,2]
[327721151,1716381041885,-200.0,0.00019178,2]
[327721152,1716381041894,-200.0,0.00019178,2]
[327721153,1716381041903,-200.0,0.00019178,2]
[327721154,1716381041912,-200.0,0.00019178,2]
[327721155,1716381041922,-200.0,0.00019178,2]
[327721156,1716381041931,-200.0,0.00019178,2]
[327721157,1716381041941,-174.0,0.00019178,2]
[327721158,1716381041952,-1232.47,0.00019178,2]
[327721159,1716381041962,-3889.08922305,0.000192,2]
[327721160,1716381041972,-270.7,0.00019392,2]
[327721161,1716381041982,-172.28,0.00019643,2]
[327721162,1716381041992,-1001.487425,0.00019726,2]
[327721163,1716381042001,-320.0,0.00019887,2]
[327721164,1716381042011,-155.30662514,0.00019998,2]
[327721165,1716381042021,-155.13197663,0.0002,2]
[327721166,1716381042031,-155.53805367,0.0002,2]
[327721167,1716381042041,-301.44039261,0.0002,2]
[327721168,1716381042053,-865.05955574,0.0002,2]
[327721169,1716381042063,-401.29778511,0.0002,2]
[327721170,1716381042073,-155.0,0.0002,2]
[327721171,1716381042082,-155.46412378,0.0002,2]
[327721172,1716381042092,-155.7383082,0.0002,2]
[327721173,1716381042103,-278.79935203,0.0002,2]
[327721174,1716381042113,-6239.63008206,0.0002,2]
[327721175,1716381042123,-155.0,0.0002,4]
[327721176,1716381042139,-1271.41666154,0.0002,2]
[327721177,1716381042149,-5186.20094472,0.0002,2]
[327721178,1716381042159,-1016.0,0.0002,2]
[327721179,1716381042169,-294.83570765,0.00020199,2]
[327721180,1716381042180,-1161.09221,0.0002037,2]
[327721181,1716381042189,-370.19,0.00020447,2]
[327721182,1716381042200,-168.45,0.00020515,2]
[327721183,1716381042212,-1001.487425,0.00020548,2]
[327721184,1716381042221,-171.1,0.00020548,2]
[327721185,1716381042231,-172.28,0.00020941,2]
[327721186,1716381042240,-648.82979006,0.00021,2]
[327721187,1716381042249,-3089.79346649,0.00021147,2]
[327721188,1716381042259,-24771.37,0.0002137,2]
[327721189,1716381042268,-5094.82,0.0002137,2]
[327721190,1716381042277,-270.7,0.00021656,2]
[327721191,1716381042288,-151.91,0.00021661,2]
[327721193,1716381042299,-974.0,0.00021787,2]
[327721194,1716381042308,-2161.0,0.00021787,2]
[327721195,1716381042317,-1263.0,0.00021787,2]
[327721196,1716381042326,-1225.0,0.00021787,2]
[327721197,1716381042335,-588.0,0.00021787,2]
[327721198,1716381042348,-1643.0,0.00021787,2]
[327721199,1716381042357,-1649.0,0.00021787,2]
[327721200,1716381042366,-2395.0,0.00021787,2]
[327721201,1716381042376,-264.06979507,0.00021893,2]
[327721202,1716381042386,-6771.4801469,0.000219,2]
[327721203,1716381042396,-1000.0,0.000219,2]
[327721204,1716381042405,-292.79,0.00021918,2]
[327721205,1716381042415,-2000.0,0.00021918,2]
[327721206,1716381042425,-150.66,0.00021918,2]
[327721207,1716381042434,-163.86,0.00021918,2]
[327721208,1716381042444,-787.61802861,0.00022,2]
[327721209,1716381042454,-155.46791382,0.00022044,2]
[327721210,1716381042464,-543.40714206,0.00022069,2]
[327721211,1716381042473,-154.49054118,0.00022181,2]
[327721212,1716381042483,-275.100852,0.00022185,2]
[327721213,1716381042492,-159.36999109,0.00022191,2]
[327721214,1716381042502,-275.100852,0.0002223,2]
[327721215,1716381042511,-172.28,0.00022239,2]
[327721216,1716381042521,-159.16129054,0.0002224,2]
[327721217,1716381042531,-275.100852,0.0002226,2]
[327721218,1716381042540,-157.54884506,0.0002228,2]
[327721219,1716381042552,-463.50856912,0.00022291,2]
[327721220,1716381042561,-166.66666665,0.00022329,2]
[327721221,1716381042571,-166.66666665,0.00022333,2]
[327721222,1716381042581,-151.97205109,0.00022344,2]
[327721223,1716381042591,-275.100852,0.00022365,2]
[327721224,1716381042600,-547.45858614,0.000224,2]
[327721225,1716381042609,-275.100852,0.00022421,2]
[327721226,1716381042620,-463.50856912,0.00022426,2]
[327721227,1716381042631,-151.8895225,0.00022456,2]
[327721228,1716381042640,-463.50856912,0.00022462,2]
[327721229,1716381042651,-154.49054118,0.00022478,2]
[327721230,1716381042660,-275.100852,0.00022488,2]
[327721231,1716381042670,-152.98488687,0.00022537,2]
[327721232,1716381042680,-158.89683256,0.00022584,2]
[327721233,1716381042690,-543.40714206,0.00022599,2]
[327721234,1716381042700,-179.04,0.00022603,2]
[327721235,1716381042709,-154.49054118,0.00022668,2]
[327721236,1716381042719,-543.40714206,0.00022696,2]
[327721237,1716381042729,-166.29644051,0.000227,2]
[327721238,1716381042738,-275.100852,0.00022742,2]
[327721239,1716381042748,-151.8895225,0.00022749,2]
[327721240,1716381042758,-152.98488687,0.00022816,2]
[327721241,1716381042767,-543.40714206,0.00022816,2]
[327721242,1716381042777,-151.0,0.00022844,7]
[327721243,1716381042787,-151.0,0.00022844,7]
[327721244,1716381042798,-171.628395,0.00022844,7]
[327721245,1716381042808,-151.0,0.00022844,7]
[327721246,1716381042818,-151.0,0.00022844,7]
[327721247,1716381042828,-151.0,0.00022844,7]
[327721248,1716381042837,-155.146465,0.00022844,7]
[327721249,1716381042847,-151.0,0.00022844,7]
[327721250,1716381042855,-151.0,0.00022844,7]
[327721251,1716381042865,-159.16129054,0.00022851,2]
[327721252,1716381042875,-162.79015965,0.0002286,2]
[327721253,1716381042884,-1161.09221,0.0002287,2]
[327721254,1716381042894,-313.88315653,0.00022898,2]
[327721255,1716381042903,-151.8895225,0.00022973,2]
[327721256,1716381042913,-151.8895225,0.00022981,2]
[327721257,1716381042923,-5511.49091993,0.00023,2]
[327721258,1716381042932,-750.0,0.00023,2]
[327721259,1716381042942,-151.0,0.00023,7]
[327721260,1716381042951,-151.0,0.00023,7]
[327721261,1716381042962,-151.0,0.00023,7]
[327721262,1716381042971,-151.0,0.00023,7]
[327721263,1716381042981,-151.0,0.00023,7]
[327721264,1716381042990,-151.0,0.00023,7]
[327721265,1716381043000,-152.524679,0.00023,7]
[327721266,1716381043011,-463.50856912,0.00023024,2]
[327721267,1716381043024,-155.31485281,0.00023042,2]
[327721268,1716381043035,-151.8895225,0.00023091,2]
[327721269,1716381043049,-3089.79346649,0.00023183,2]
[327721270,1716381043171,-463.50856912,0.00023199,2]
[327721271,1716381043181,-151.8895225,0.00023261,2]
[327721272,1716381043191,-160.36674768,0.00023275,2]
[327721273,1716381043201,-154.49054118,0.00023357,2]
[327721274,1716381043212,-2004.82313321,0.000234,2]
[327721275,1716381043225,-155.46791382,0.00023418,2]
[327721276,1716381043236,-275.100852,0.00023444,2]
[327721277,1716381043246,-154.21988294,0.00023471,2]
[327721278,1716381043255,-543.40714206,0.00023484,2]
[327721279,1716381043265,-154.49054118,0.00023491,2]
[327721280,1716381043275,-151.8895225,0.00023515,2]
[327721281,1716381043285,-463.50856912,0.00023535,2]
[327721282,1716381043298,-151.97205109,0.00023558,2]
[327721283,1716381043308,-151.8895225,0.00023573,2]
[327721284,1716381043318,-155.31485281,0.00023575,2]
[327721285,1716381043328,-275.100852,0.00023583,2]
[327721286,1716381043338,-154.67800329,0.00023621,2]
[327721287,1716381043348,-166.66666666,0.00023631,2]
[327721288,1716381043358,-151.8895225,0.00023638,2]
[327721289,1716381043367,-313.88315653,0.00023668,2]
[327721290,1716381043377,-154.49054118,0.00023742,2]
[327721291,1716381043388,-154.49054118,0.0002376,2]
[327721292,1716381043397,-152.98488687,0.00023811,2]
[327721293,1716381043407,-155.31485281,0.0002382,2]
[327721294,1716381043417,-152.98488687,0.00023874,2]
[327721295,1716381043427,-159.36999109,0.00023911,2]
[327721296,1716381043437,-270.7,0.0002392,2]
[327721297,1716381043447,-151.8895225,0.00023994,2]
[327721298,1716381043456,-463.50856912,0.00023996,2]
[327721299,1716381043466,-433.05694752,0.00024,2]
[327721300,1716381043476,-151.0,0.00024,7]
[327721301,1716381043486,-1719.128717,0.00024,7]
[327721302,1716381043496,-151.0,0.00024,7]
[327721303,1716381043506,-1719.128717,0.00024,7]
[327721304,1716381043515,-218.699068,0.00024,7]
[327721305,1716381043525,-153.956021,0.00024,7]
[327721306,1716381043534,-153.956021,0.00024,7]
[327721307,1716381043544,-277.207136,0.00024,7]
[327721308,1716381043555,-277.207136,0.00024,7]
[327721309,1716381043564,-151.0,0.00024,7]
[327721310,1716381043573,-151.0,0.00024018,7]
[327721311,1716381043583,-206.942991,0.00024018,7]
[327721312,1716381043594,-211.268041,0.00024018,7]
[327721313,1716381043604,-211.268041,0.00024018,7]
[327721314,1716381043614,-183.206912,0.00024018,7]
[327721315,1716381043624,-183.206912,0.00024018,7]
[327721316,1716381043635,-290.156472,0.00024018,7]
[327721317,1716381043644,-290.156472,0.00024018,7]
[327721318,1716381043654,-151.0,0.00024018,7]
[327721319,1716381043665,-468.213742,0.00024018,7]
[327721320,1716381043675,-468.213742,0.00024018,7]
[327721321,1716381043685,-157.97230717,0.00024049,2]
[327721322,1716381043695,-155.46791382,0.00024088,2]
[327721323,1716381043705,-463.50856912,0.00024144,2]
[327721324,1716381043715,-151.0,0.00024224,7]
[327721325,1716381043724,-154.635562,0.00024224,7]
[327721326,1716381043734,-151.0,0.00024224,7]
[327721327,1716381043744,-180.0,0.0002423,2]
[327721328,1716381043753,-151.8895225,0.00024263,2]
[327721329,1716381043764,-150.0,0.000243,4]
[327721330,1716381043773,-313.88315653,0.00024339,2]
[327721331,1716381043788,-150.0,0.00024339,2]
[327721332,1716381043815,-160.07720588,0.00024353,2]
[327721333,1716381043834,-313.88315653,0.00024353,2]
[327721334,1716381043853,-150.0,0.00024403,2]
[327721335,1716381043876,-543.40714206,0.00024408,2]
[327721336,1716381043895,-155.31485281,0.00024417,2]
[327721337,1716381043915,-155.0,0.00024432,2]
[327721338,1716381043930,-313.88315653,0.00024435,2]
[327721339,1716381043946,-313.88315653,0.00024463,2]
[327721340,1716381043966,-152.98488687,0.00024476,2]
[327721341,1716381043985,-463.50856912,0.00024482,2]
[327721342,1716381044000,-1478.14157316,0.000245,3]
[327721343,1716381044017,-151.8895225,0.00024532,2]
[327721344,1716381044034,-313.88315653,0.00024533,2]
[327721345,1716381044051,-150.0,0.00024576,2]
[327721346,1716381044067,-155.31485281,0.00024587,2]
[327721347,1716381044082,-151.8895225,0.00024642,2]
[327721348,1716381044098,-275.100852,0.00024653,2]
[327721349,1716381044115,-250.0,0.00024658,2]
[327721350,1716381044131,-302.39,0.00024658,2]
[327721351,1716381044151,-151.0,0.00024658,7]
[327721352,1716381044169,-275.100852,0.00024691,2]
[327721353,1716381044188,-500.0,0.000247,2]
[327721354,1716381044210,-150.0,0.00024705,2]
[327721355,1716381044228,-151.8895225,0.00024727,2]
[327721356,1716381044245,-275.100852,0.00024741,2]
[327721357,1716381044262,-160.0772059,0.00024756,2]
[327721358,1716381044278,-155.46791382,0.00024775,2]
[327721359,1716381044295,-974.0,0.00024787,2]
[327721360,1716381044316,-1976.0,0.00024787,2]
[327721361,1716381044331,-613.0,0.00024787,2]
[327721362,1716381044347,-1263.0,0.00024787,2]
[327721363,1716381044363,-612.138,0.00024787,2]
[327721364,1716381044380,-1336.378,0.00024787,2]
[327721365,1716381044399,-150.0,0.00024792,2]
[327721366,1716381044417,-4248.939567,0.000248,2]
[327721367,1716381044434,-150.0,0.000248,4]
[327721368,1716381044452,-151.0,0.000248,7]
[327721369,1716381044470,-151.0,0.000248,7]
[327721370,1716381044488,-151.0,0.000248,7]
[327721371,1716381044506,-169.00998554,0.00024827,2]
[327721372,1716381044523,-150.0,0.00024829,2]
[327721373,1716381044541,-264.06979507,0.00024891,2]
[327721374,1716381044559,-313.88315653,0.00024891,2]
[327721375,1716381044574,-1000.0,0.000249,9]
[327721376,1716381044590,-150.0,0.00024911,2]
[327721377,1716381044606,-313.88315653,0.00024939,2]
[327721378,1716381044623,-174.0894968,0.00024948,2]
[327721379,1716381044641,-150.0,0.0002495,2]
[327721380,1716381044657,-150.0,0.00024953,2]
[327721381,1716381044674,-264.46,0.0002497,15]
[327721382,1716381044690,-269.0,0.0002497,15]
[327721383,1716381044706,-906.0,0.0002497,15]
[327721384,1716381044723,-150.5,0.0002498,15]
[327721385,1716381044740,-269.0,0.0002498,15]
[327721386,1716381044757,-906.0,0.0002498,15]
[327721387,1716381044773,-173.1015,0.00024986,7]
[327721388,1716381044789,-173.1015,0.00024986,7]
[327721389,1716381044806,-169.896548,0.00024986,7]
[327721390,1716381044822,-151.0,0.00024986,7]
[327721391,1716381044840,-169.896548,0.00024986,7]
[327721392,1716381044857,-151.0,0.00024986,7]
[327721393,1716381044873,-151.0,0.00024986,7]
[327721394,1716381044889,-151.0,0.00024986,7]
[327721395,1716381045041,-151.0,0.00024986,7]
[327721396,1716381045056,-151.0,0.00024986,7]
[327721397,1716381045066,-151.0,0.00024986,7]
[327721398,1716381045076,-151.0,0.00024986,7]
[327721399,1716381045085,-151.0,0.00024986,7]
[327721400,1716381045094,-151.0,0.00024986,7]
[327721401,1716381045104,-151.0,0.00024986,7]
[327721402,1716381045114,-151.0,0.00024986,7]
[327721403,1716381045125,-151.0,0.00024986,7]
[327721404,1716381045136,-156.407608,0.00024986,7]
[327721405,1716381045146,-151.0,0.00024986,7]
[327721406,1716381045155,-151.0,0.00024986,7]
[327721407,1716381045165,-151.0,0.00024986,7]
[327721408,1716381045175,-151.0,0.00024986,7]
[327721409,1716381045184,-233.616834,0.00024986,7]
[327721410,1716381045193,-151.0,0.00024986,7]
[327721411,1716381045202,-151.0,0.00024986,7]
[327721412,1716381045213,-151.0,0.00024986,7]
[327721413,1716381045223,-151.0,0.00024986,7]
[327721414,1716381045232,-211.268041,0.00024986,7]
[327721416,1716381045241,-211.268041,0.00024986,7]
[327721417,1716381045251,-183.206912,0.00024986,7]
[327721419,1716381045261,-183.206912,0.00024986,7]
[327721420,1716381045270,-290.156472,0.00024986,7]
[327721421,1716381045279,-290.156472,0.00024986,7]
[327721422,1716381045289,-155.659076,0.00024986,7]
[327721423,1716381045300,-468.213742,0.00024986,7]
[327721424,1716381045308,-468.213742,0.00024986,7]
[327721425,1716381045317,-151.0,0.00024986,7]
[327721426,1716381045326,-151.0,0.00024986,7]
[327721427,1716381045335,-151.0,0.00024986,7]
[327721428,1716381045344,-151.0,0.00024986,7]
[327721429,1716381045353,-151.0,0.00024986,7]
[327721430,1716381045362,-151.0,0.00024986,7]
[327721431,1716381045371,-151.0,0.00024986,7]
[327721432,1716381045381,-237.50678,0.00024986,7]
[327721433,1716381045390,-151.0,0.00024986,7]
[327721434,1716381045399,-151.0,0.00024986,7]
[327721435,1716381045409,-151.0,0.00024986,7]
[327721436,1716381045418,-1719.128717,0.00024986,7]
[327721437,1716381045427,-151.0,0.00024986,7]
[327721438,1716381045437,-1719.128717,0.00024986,7]
[327721439,1716381045447,-153.956021,0.00024986,7]
[327721440,1716381045456,-153.956021,0.00024986,7]
[327721441,1716381045465,-151.0,0.00024986,7]
[327721442,1716381045474,-277.207136,0.00024986,7]
[327721443,1716381045483,-277.207136,0.00024986,7]
[327721444,1716381045493,-151.0,0.00024986,7]
[327721445,1716381045502,-151.0,0.00024986,7]
[327721446,1716381045511,-241.81479,0.00024986,7]
[327721447,1716381045520,-152214.0,0.00024986,2]
[327721448,1716381045530,-150.5,0.0002499,15]
[327721449,1716381045539,-269.0,0.0002499,15]
[327721450,1716381045549,-261.5,0.0002499,15]
[327721451,1716381045559,-9155.08316628,0.0002499,2]
[327721452,1716381045568,-906.0,0.0002499,15]
[327721453,1716381045577,-151.0,0.0002499,7]
[327721454,1716381045587,-7534.0742193,0.00024997,2]
[327721455,1716381045596,-442.3175302,0.00024997,2]
[327721456,1716381045607,-5927.0281803,0.00024997,2]
[327721457,1716381045617,-3827.1489317,0.00024997,2]
[327721458,1716381045626,-155.53642834,0.00024998,2]
[327721459,1716381045636,-241.01013371,0.00024999,2]
[327721460,1716381045647,-208.16268875,0.00024999,2]
[327721461,1716381045656,-3778.61813248,0.00024999,2]
[327721462,1716381045666,-712046.50924527,0.00025,2]
[327721463,1716381045675,-224.2998362,0.00025,2]
[327721464,1716381045685,-217.35913135,0.00025,2]
[327721465,1716381045694,-1172.45,0.00025,2]
[327721466,1716381045703,-18775.07,0.00025,2]
[327721467,1716381045712,-500.0,0.00025,7]
[327721468,1716381045722,-800.0,0.00025,2]
[327721469,1716381045732,-155.0,0.00025,2]
[327721470,1716381045742,-3200.0,0.00025,2]
[327721471,1716381045754,-298.965922,0.00025,7]
[327721472,1716381045763,-1277.76350076,0.00025,2]
[327721473,1716381045772,-933.40125691,0.00025,2]
[327721474,1716381045781,-153.022841,0.00025,7]
[327721475,1716381045791,-151.0,0.00025,7]
[327721476,1716381045801,-153.071131,0.00025,7]
[327721477,1716381045811,-151.0,0.00025,7]
[327721478,1716381045820,-1575.86,0.00025,2]
[327721480,1716381045830,-1889.05,0.00025,2]
[327721482,1716381045841,-296.994175,0.00025,7]
[327721484,1716381045850,-173.1015,0.00025,7]
[327721485,1716381045860,-173.1015,0.00025,7]
[327721487,1716381045870,-169.896548,0.00025,7]
[327721490,1716381045879,-174.288178,0.00025,7]
[327721492,1716381045888,-169.896548,0.00025,7]
[327721493,1716381045898,-151.0,0.00025,7]
[327721495,1716381045908,-151.0,0.00025,7]
[327721497,1716381045917,-199.788348,0.00025,7]
[327721498,1716381045926,-151.0,0.00025,7]
[327721500,1716381045936,-151.0,0.00025,7]
[327721501,1716381045946,-151.0,0.00025,7]
[327721503,1716381045955,-248.366365,0.00025,7]
[327721505,1716381045965,-163.056711,0.00025,7]
[327721506,1716381045974,-151.0,0.00025,7]
[327721508,1716381045984,-151.0,0.00025,7]
[327721510,1716381045993,-151.0,0.00025,7]
[327721511,1716381046002,-151.0,0.00025,7]
[327721513,1716381046012,-151.0,0.00025,7]
[327721515,1716381046021,-151.0,0.00025,7]
[327721517,1716381046031,-151.0,0.00025,7]
[327721518,1716381046040,-151.0,0.00025,7]
[327721520,1716381046051,-151.0,0.00025,7]
[327721522,1716381046060,-151.0,0.00025,7]
[327721524,1716381046070,-151.0,0.00025,7]
[327721525,1716381046079,-151.0,0.00025,7]
[327721527,1716381046088,-211.268041,0.00025,7]
[327721529,1716381046098,-211.268041,0.00025,7]
[327721530,1716381046108,-183.206912,0.00025,7]
[327721531,1716381046117,-183.206912,0.00025,7]
[327721532,1716381046129,-290.156472,0.00025,7]
[327721533,1716381046141,-290.156472,0.00025,7]
[327721534,1716381046150,-468.213742,0.00025,7]
[327721535,1716381046160,-468.213742,0.00025,7]
[327721536,1716381046171,-151.0,0.00025,7]
[327721537,1716381046180,-151.0,0.00025,7]
[327721538,1716381046190,-151.0,0.00025,7]
[327721539,1716381046199,-151.0,0.00025,7]
[327721540,1716381046209,-151.0,0.00025,7]
[327721541,1716381046218,-151.0,0.00025,7]
[327721542,1716381046229,-151.0,0.00025,7]
[327721543,1716381046238,-177.390616,0.00025,7]
[327721544,1716381046248,-151.0,0.00025,7]
[327721545,1716381046257,-151.0,0.00025,7]
[327721546,1716381046267,-1719.128717,0.00025,7]
[327721547,1716381046277,-1719.128717,0.00025,7]
[327721548,1716381046286,-151.0,0.00025,7]
[327721549,1716381046296,-153.956021,0.00025,7]
[327721550,1716381046308,-153.956021,0.00025,7]
[327721551,1716381046317,-277.207136,0.00025,7]
[327721552,1716381046327,-277.207136,0.00025,7]
[327721553,1716381046337,-258.881541,0.00025,7]
[327721554,1716381046346,-151.0,0.00025,7]
[327721555,1716381046356,-278.1696221,0.00025014,2]
[327721556,1716381046366,-151.8895225,0.00025018,2]
[327721557,1716381046376,-463.50856912,0.00025024,2]
[327721558,1716381046385,-150.0,0.00025034,2]
[327721559,1716381046395,-155.31485281,0.00025046,2]
[327721560,1716381046405,-543.40714206,0.00025058,2]
[327721561,1716381046415,-463.50856912,0.00025086,2]
[327721562,1716381046425,-543.40714206,0.00025104,2]
[327721563,1716381046435,-154.49054118,0.00025121,2]
[327721564,1716381046444,-151.8895225,0.00025144,2]
[327721565,1716381046453,-198.72994486,0.00025156,2]
[327721566,1716381046463,-159.36999109,0.00025204,2]
[327721567,1716381046473,-3089.79346649,0.00025219,2]
[327721568,1716381046483,-275.100852,0.00025236,2]
[327721569,1716381046493,-150.0,0.00025236,2]
[327721570,1716381046503,-164.26526272,0.00025243,2]
[327721571,1716381046512,-197.52167346,0.00025256,2]
[327721572,1716381046522,-150.0,0.00025282,2]
[327721573,1716381046531,-150.0,0.000253,4]
[327721574,1716381046540,-313.88315653,0.00025318,2]
[327721575,1716381046551,-150.0,0.00025363,2]
[327721576,1716381046561,-150.0,0.00025368,2]
[327721577,1716381046570,-1161.09221,0.0002537,2]
[327721578,1716381046579,-152.98488687,0.00025399,2]
[327721579,1716381046588,-152.98488687,0.00025401,2]
[327721580,1716381046597,-150.0,0.00025414,2]
[327721581,1716381046607,-150.0,0.00025422,2]
[327721582,1716381046617,-463.50856912,0.00025468,2]
[327721583,1716381046627,-151.8895225,0.00025543,2]
[327721584,1716381046731,-151.8895225,0.00025567,2]
[327721585,1716381046742,-163.86,0.00025571,2]
[327721586,1716381046751,-313.88315653,0.00025589,2]
[327721587,1716381046761,-624.46139119,0.00025612,2]
[327721588,1716381046770,-150.0,0.00025632,2]
[327721589,1716381046779,-313.88315653,0.00025659,2]
[327721590,1716381046789,-543.40714206,0.00025667,2]
[327721591,1716381046799,-152.98488687,0.00025712,2]
[327721592,1716381046808,-150.0,0.00025713,2]
[327721593,1716381046818,-155.31485281,0.0002573,2]
[327721594,1716381046827,-150.0,0.00025786,2]